[Event "FIDE U16 Olympiad_boards_1-80"]
[Site "Eindhoven, Netherlands"]
[Date "2023.08.14"]
[Round "2.4"]
[White "Tejaswini, G"]
[Black "Nurmanova, Alua"]
[Result "0-1"]
[TimeControl "2700+10"]
[WhiteElo "1733"]
[BlackElo "2252"]

1. d4 {[%clk 00:45:10]} {[%emt 00:00:06]} Nf6 {[%clk 00:45:10]} {[%emt
00:00:05]} 2. c4 {[%clk 00:45:10]} {[%emt 00:00:02]} g6 {[%clk 00:45:10]}
{[%emt 00:00:08]} 3. Nc3 {[%clk 00:45:10]} {[%emt 00:00:02]} Bg7 {[%clk
00:45:10]} {[%emt 00:00:03]} 4. Nf3 {[%clk 00:45:10]} {[%emt 00:00:03]} d6
{[%clk 00:43:57]} {[%emt 00:01:23]} 5. g3 {[%clk 00:45:10]} {[%emt 00:00:05]}
O-O {[%clk 00:43:57]} {[%emt 00:00:04]} 6. Bg2 {[%clk 00:45:10]} {[%emt
00:00:02]} Nc6 {[%clk 00:43:53]} {[%emt 00:00:13]} 7. O-O {[%clk 00:44:39]}
{[%emt 00:00:41]} Bd7 {[%clk 00:43:20]} {[%emt 00:00:43]} 8. e4 {[%clk
00:41:54]} {[%emt 00:02:56]} e5 {[%clk 00:41:00]} {[%emt 00:02:31]} 9. d5
{[%clk 00:41:54]} {[%emt 00:00:05]} Nb8 {[%clk 00:40:47]} {[%emt 00:00:20]} 10.
Be3 {[%clk 00:33:33]} {[%emt 00:08:33]} a5 {[%clk 00:38:08]} {[%emt 00:02:49]}
11. c5 {[%clk 00:32:40]} {[%emt 00:01:03]} Ng4 {[%clk 00:33:26]} {[%emt
00:04:52]} 12. cxd6 {[%clk 00:32:31]} {[%emt 00:00:18]} cxd6 {[%clk 00:33:26]}
{[%emt 00:00:02]} 13. Bg5 {[%clk 00:32:03]} {[%emt 00:00:38]} Nf6 {[%clk
00:32:42]} {[%emt 00:00:54]} 14. Qb3 {[%clk 00:29:58]} {[%emt 00:02:15]} Na6
{[%clk 00:30:49]} {[%emt 00:02:03]} 15. Be3 {[%clk 00:25:56]} {[%emt 00:04:13]}
b5 {[%clk 00:30:17]} {[%emt 00:00:42]} 16. Ne1 {[%clk 00:21:01]} {[%emt
00:05:05]} b4 {[%clk 00:26:21]} {[%emt 00:04:05]} 17. Ne2 {[%clk 00:19:13]}
{[%emt 00:01:59]} a4 {[%clk 00:22:45]} {[%emt 00:03:46]} 18. Qd1 {[%clk
00:19:13]} {[%emt 00:00:03]} Rc8 {[%clk 00:22:45]} {[%emt 00:00:05]} 19. f3
{[%clk 00:17:10]} {[%emt 00:02:13]} Qa5 {[%clk 00:22:17]} {[%emt 00:00:37]} 20.
Qd2 {[%clk 00:16:25]} {[%emt 00:00:55]} Qb5 {[%clk 00:18:27]} {[%emt 00:04:01]}
21. Nd3 {[%clk 00:15:37]} {[%emt 00:00:58]} Rc7 {[%clk 00:16:16]} {[%emt
00:02:21]} 22. Rfc1 {[%clk 00:15:35]} {[%emt 00:00:12]} Rfc8 {[%clk 00:16:16]}
{[%emt 00:00:07]} 23. Bf1 {[%clk 00:15:35]} {[%emt 00:00:05]} Rxc1 {[%clk
00:15:09]} {[%emt 00:01:17]} 24. Rxc1 {[%clk 00:15:35]} {[%emt 00:00:01]} Rxc1
{[%clk 00:15:09]} {[%emt 00:00:02]} 25. Nexc1 {[%clk 00:15:19]} {[%emt
00:00:26]} Qb7 {[%clk 00:15:09]} {[%emt 00:00:05]} 26. Bf2 {[%clk 00:13:28]}
{[%emt 00:02:02]} Bb5 {[%clk 00:13:29]} {[%emt 00:01:49]} 27. Be1 {[%clk
00:12:12]} {[%emt 00:01:26]} Qc7 {[%clk 00:13:05]} {[%emt 00:00:34]} 28. Ne2
{[%clk 00:09:48]} {[%emt 00:02:34]} b3 {[%clk 00:10:31]} {[%emt 00:02:44]} 29.
axb3 {[%clk 00:09:24]} {[%emt 00:00:34]} axb3 {[%clk 00:10:31]} {[%emt
00:00:01]} 30. Nc3 {[%clk 00:09:20]} {[%emt 00:00:14]} Bc4 {[%clk 00:10:29]}
{[%emt 00:00:12]} 31. Nb1 {[%clk 00:08:17]} {[%emt 00:01:13]} Nd7 {[%clk
00:09:03]} {[%emt 00:01:36]} 32. Na3 {[%clk 00:07:59]} {[%emt 00:00:28]} Bxd3
{[%clk 00:09:03]} {[%emt 00:00:05]} 33. Bxd3 {[%clk 00:07:59]} {[%emt
00:00:08]} Nac5 {[%clk 00:09:03]} {[%emt 00:00:04]} 34. Bb1 {[%clk 00:05:55]}
{[%emt 00:02:14]} Nb6 {[%clk 00:08:29]} {[%emt 00:00:43]} 35. Bf2 {[%clk
00:05:14]} {[%emt 00:00:51]} Nba4 {[%clk 00:08:20]} {[%emt 00:00:20]} 36. Be3
{[%clk 00:04:33]} {[%emt 00:00:52]} Bf8 {[%clk 00:08:05]} {[%emt 00:00:24]} 37.
Bd3 {[%clk 00:03:41]} {[%emt 00:01:02]} Nb6 {[%clk 00:03:15]} {[%emt 00:05:00]}
38. Bb5 {[%clk 00:02:26]} {[%emt 00:01:25]} Nbd7 {[%emt 00:00:53]} 39. Bc6
{[%clk 00:02:03]} {[%emt 00:00:32]} Qb8 {[%clk 00:01:29]} {[%emt 00:01:15]} 40.
Qc3 {[%clk 00:01:55]} {[%emt 00:00:18]} Be7 {[%clk 00:01:09]} {[%emt 00:00:31]}
41. Nb5 {[%clk 00:01:23]} {[%emt 00:00:41]} Qc8 {[%clk 00:01:08]} {[%emt
00:00:11]} 42. Qa5 {[%clk 00:00:59]} {[%emt 00:00:34]} Nf8 {[%clk 00:00:16]}
{[%emt 00:01:02]} 43. Qa7 {[%clk 00:00:57]} {[%emt 00:00:12]} Qd8 {[%clk
00:00:16]} {[%emt 00:00:09]} 44. Bd2 {[%clk 00:00:24]} {[%emt 00:00:43]} Bg5
{[%clk 00:00:15]} {[%emt 00:00:11]} 45. Qa5 {[%clk 00:00:12]} {[%emt 00:00:22]}
Be3+ {[%clk 00:00:15]} {[%emt 00:00:08]} 46. Kg2 {[%clk 00:00:12]} {[%emt
00:00:01]} Qxa5 {[%clk 00:00:13]} {[%emt 00:00:11]} 47. Bxa5 {[%clk 00:00:12]}
{[%emt 00:00:01]} Nd3 {[%clk 00:00:13]} {[%emt 00:00:02]} 48. Bc3 {[%clk
00:00:12]} {[%emt 00:00:01]} Bc5 {[%clk 00:00:13]} {[%emt 00:00:05]} 49. Kf1
{[%clk 00:00:12]} {[%emt 00:00:03]} f5 {[%clk 00:00:13]} {[%emt 00:00:06]} 50.
Ke2 {[%clk 00:00:12]} Nc1+ {[%clk 00:00:13]} {[%emt 00:00:03]} 51. Kd1 {[%clk
00:00:12]} {[%emt 00:00:01]} Na2 {[%clk 00:00:13]} 52. Bd2 {[%emt 00:00:07]}
Nb4 {[%clk 00:00:13]} {[%emt 00:00:05]} 53. Bxb4 {[%clk 00:00:12]} {[%emt
00:00:04]} Bxb4 {[%clk 00:00:13]} {[%emt 00:00:01]} 54. Ke2 {[%clk 00:00:12]}
{[%emt 00:00:01]} Kf7 {[%clk 00:00:13]} {[%emt 00:00:05]} 55. Kd3 {[%clk
00:00:12]} {[%emt 00:00:04]} fxe4+ {[%clk 00:00:12]} {[%emt 00:00:11]} 56. fxe4
{[%clk 00:00:12]} Bc5 {[%clk 00:00:12]} {[%emt 00:00:01]} 57. Kc4 {[%clk
00:00:12]} {[%emt 00:00:03]} Ke7 {[%clk 00:00:12]} {[%emt 00:00:01]} 58. Kxb3
{[%clk 00:00:12]} {[%emt 00:00:06]} Bg1 {[%clk 00:00:12]} 59. h3 {[%clk
00:00:12]} h5 {[%clk 00:00:12]} {[%emt 00:00:03]} 60. Nc3 {[%clk 00:00:12]} Nh7
{[%clk 00:00:12]} {[%emt 00:00:07]} 61. Ne2 {[%emt 00:00:08]} Bf2 {[%clk
00:00:12]} {[%emt 00:00:02]} 62. h4 {[%clk 00:00:12]} {[%emt 00:00:04]} Nf6
{[%clk 00:00:12]} 63. Kc4 {[%clk 00:00:12]} {[%emt 00:00:06]} Nxe4 {[%clk
00:00:12]} {[%emt 00:00:02]} 64. b4 {[%clk 00:00:12]} {[%emt 00:00:04]} Nxg3
{[%clk 00:00:12]} {[%emt 00:00:06]} 65. Nc3 {[%clk 00:00:12]} {[%emt 00:00:04]}
Nf5 {[%clk 00:00:12]} {[%emt 00:00:06]} 66. b5 {[%clk 00:00:12]} {[%emt
00:00:05]} Nxh4 {[%clk 00:00:12]} {[%emt 00:00:02]} 67. Na4 {[%clk 00:00:12]}
{[%emt 00:00:04]} Nf5 {[%clk 00:00:12]} {[%emt 00:00:07]} 68. b6 {[%clk
00:00:12]} {[%emt 00:00:03]} Bxb6 {[%clk 00:00:12]} {[%emt 00:00:04]} 69. Nxb6
{[%clk 00:00:12]} {[%emt 00:00:01]} h4 {[%clk 00:00:12]} 70. Ba4 {[%clk
00:00:12]} {[%emt 00:00:06]} h3 {[%clk 00:00:12]} {[%emt 00:00:03]} 71. Bd1
{[%emt 00:00:05]} Ne3+ {[%clk 00:00:12]} 72. Kd3 {[%clk 00:00:12]} Nxd1 {[%clk
00:00:12]} 73. Ke2 {[%clk 00:00:12]} {[%emt 00:00:03]} h2 {[%clk 00:00:12]}
{[%emt 00:00:01]} 0-1

[Event "FIDE U16 Olympiad_boards_1-80"]
[Site "Eindhoven, Netherlands"]
[Date "2023.08.14"]
[Round "2.5"]
[White "Asllani, Dorian"]
[Black "Xue, Haowen"]
[Result "0-1"]
[TimeControl "2700+10"]
[WhiteElo "2109"]
[BlackElo "2214"]

1. d4 {[%clk 00:45:17]} {[%emt 00:00:03]} Nf6 {[%clk 00:45:12]} {[%emt
00:00:09]} 2. c4 {[%clk 00:45:23]} {[%emt 00:00:04]} e6 {[%clk 00:45:19]}
{[%emt 00:00:02]} 3. Nc3 {[%clk 00:45:28]} {[%emt 00:00:05]} d5 {[%clk
00:45:23]} {[%emt 00:00:06]} 4. Nf3 {[%clk 00:45:10]} {[%emt 00:00:28]} Nbd7
{[%clk 00:45:30]} {[%emt 00:00:03]} 5. e3 {[%clk 00:43:36]} {[%emt 00:01:45]}
a6 {[%clk 00:44:46]} {[%emt 00:00:53]} 6. a4 {[%clk 00:37:08]} {[%emt
00:06:38]} Bb4 {[%clk 00:44:28]} {[%emt 00:00:28]} 7. Bd3 {[%clk 00:36:01]}
{[%emt 00:01:17]} dxc4 {[%clk 00:44:02]} {[%emt 00:00:36]} 8. Bxc4 {[%clk
00:35:17]} {[%emt 00:00:54]} b6 {[%clk 00:44:09]} {[%emt 00:00:03]} 9. O-O
{[%clk 00:33:37]} {[%emt 00:01:50]} Bb7 {[%clk 00:44:17]} {[%emt 00:00:02]} 10.
Qe2 {[%clk 00:31:26]} {[%emt 00:02:21]} O-O {[%clk 00:44:08]} {[%emt 00:00:19]}
11. Rd1 {[%clk 00:28:02]} {[%emt 00:03:33]} Qe7 {[%clk 00:43:51]} {[%emt
00:00:27]} 12. Bd2 {[%clk 00:26:26]} {[%emt 00:01:46]} c5 {[%clk 00:42:58]}
{[%emt 00:01:02]} 13. Rac1 {[%clk 00:24:20]} {[%emt 00:02:16]} Rfd8 {[%clk
00:40:52]} {[%emt 00:02:16]} 14. Be1 {[%clk 00:19:33]} {[%emt 00:04:58]} cxd4
{[%clk 00:40:09]} {[%emt 00:00:54]} 15. exd4 {[%clk 00:19:21]} {[%emt
00:00:22]} Nf8 {[%clk 00:39:10]} {[%emt 00:01:09]} 16. Ne5 {[%clk 00:17:33]}
{[%emt 00:01:57]} Ng6 {[%clk 00:38:15]} {[%emt 00:01:05]} 17. Nxg6 {[%clk
00:15:34]} {[%emt 00:02:10]} hxg6 {[%clk 00:38:22]} {[%emt 00:00:03]} 18. f3
{[%clk 00:14:29]} {[%emt 00:01:16]} Nd5 {[%clk 00:34:36]} {[%emt 00:03:55]} 19.
Nxd5 {[%clk 00:10:14]} {[%emt 00:04:25]} Bxd5 {[%clk 00:34:43]} {[%emt
00:00:02]} 20. Bf2 {[%clk 00:08:47]} {[%emt 00:01:37]} Bxc4 {[%clk 00:28:06]}
{[%emt 00:06:47]} 21. Qxc4 {[%clk 00:07:47]} {[%emt 00:01:11]} Rd5 {[%clk
00:27:54]} {[%emt 00:00:22]} 22. Qc6 {[%clk 00:06:00]} {[%emt 00:01:57]} Qd8
{[%clk 00:27:24]} {[%emt 00:00:41]} 23. Qb7 {[%clk 00:04:40]} {[%emt 00:01:30]}
Rd7 {[%clk 00:26:13]} {[%emt 00:01:21]} 24. Qc6 {[%clk 00:04:29]} {[%emt
00:00:21]} Rb8 {[%clk 00:24:59]} {[%emt 00:01:24]} 25. Qc4 {[%clk 00:01:52]}
{[%emt 00:02:48]} a5 {[%clk 00:24:53]} {[%emt 00:00:16]} 26. Qc6 {[%clk
00:00:51]} {[%emt 00:01:11]} Rd5 {[%clk 00:23:49]} {[%emt 00:01:13]} 27. Qc2
{[%clk 00:00:12]} {[%emt 00:00:50]} Bd6 {[%clk 00:23:30]} {[%emt 00:00:28]} 28.
Qe2 {[%clk 00:00:12]} {[%emt 00:00:10]} Qd7 {[%emt 00:01:13]} 29. Rc4 {[%clk
00:00:13]} b5 {[%clk 00:22:26]} {[%emt 00:00:20]} 30. axb5 {[%clk 00:00:22]}
{[%emt 00:00:01]} Rdxb5 {[%clk 00:22:27]} {[%emt 00:00:09]} 31. Rd2 {[%clk
00:00:21]} {[%emt 00:00:11]} Qb7 {[%clk 00:21:56]} {[%emt 00:00:41]} 32. Rcc2
{[%clk 00:00:15]} {[%emt 00:00:16]} Bb4 {[%clk 00:21:05]} {[%emt 00:01:01]} 33.
Rd1 {[%clk 00:00:17]} {[%emt 00:00:09]} Bd6 {[%clk 00:20:45]} {[%emt 00:00:30]}
34. Rdd2 {[%clk 00:00:26]} {[%emt 00:00:01]} Rd8 {[%clk 00:20:03]} {[%emt
00:00:51]} 35. Qe4 {[%clk 00:00:26]} {[%emt 00:00:10]} Qb8 {[%clk 00:19:58]}
{[%emt 00:00:15]} 36. g3 {[%clk 00:00:13]} {[%emt 00:00:23]} Bb4 {[%clk
00:19:58]} {[%emt 00:00:09]} 37. Rd1 {[%clk 00:00:14]} {[%emt 00:00:10]} Be7
{[%clk 00:19:48]} {[%emt 00:00:20]} 38. Rdd2 {[%clk 00:00:22]} {[%emt
00:00:01]} Bg5 {[%clk 00:19:24]} {[%emt 00:00:34]} 39. Re2 {[%clk 00:00:31]}
{[%emt 00:00:01]} Bf6 {[%clk 00:19:28]} {[%emt 00:00:06]} 40. Red2 {[%clk
00:00:23]} {[%emt 00:00:18]} Rb4 {[%clk 00:19:07]} {[%emt 00:00:31]} 41. g4
{[%clk 00:00:13]} {[%emt 00:00:20]} g5 {[%clk 00:16:56]} {[%emt 00:02:21]} 42.
h4 {[%clk 00:00:12]} {[%emt 00:00:12]} gxh4 {[%clk 00:16:28]} {[%emt 00:00:37]}
43. f4 {[%clk 00:00:14]} {[%emt 00:00:08]} g6 {[%clk 00:14:31]} {[%emt
00:02:07]} 44. Rc5 {[%clk 00:00:11]} {[%emt 00:00:14]} Rxb2 {[%clk 00:14:20]}
{[%emt 00:00:21]} 45. g5 {[%clk 00:00:11]} {[%emt 00:00:09]} Rxd2 {[%clk
00:12:32]} {[%emt 00:01:58]} 46. gxf6 {[%clk 00:00:20]} {[%emt 00:00:02]} Qb2
{[%clk 00:11:36]} {[%emt 00:01:06]} 47. Qe1 {[%clk 00:00:11]} {[%emt 00:00:19]}
h3 {[%clk 00:10:56]} {[%emt 00:00:49]} 48. Rg5 {[%clk 00:00:12]} {[%emt
00:00:09]} h2+ {[%clk 00:10:57]} {[%emt 00:00:09]} 0-1

[Event "FIDE U16 Olympiad_boards_1-80"]
[Site "Eindhoven, Netherlands"]
[Date "2023.08.14"]
[Round "2.6"]
[White "Xiao, Tong(Qd)"]
[Black "Mattenberger, Matthias"]
[Result "1-0"]
[TimeControl "2700+10"]
[WhiteElo "2128"]
[BlackElo "2276"]

1. e4 {[%clk 00:45:18]} {[%emt 00:00:01]} c5 {[%clk 00:45:14]} {[%emt
00:00:07]} 2. Nf3 {[%clk 00:45:27]} {[%emt 00:00:01]} d6 {[%clk 00:45:22]}
{[%emt 00:00:01]} 3. d4 {[%clk 00:45:36]} {[%emt 00:00:01]} cxd4 {[%clk
00:45:31]} {[%emt 00:00:02]} 4. Nxd4 {[%clk 00:45:45]} Nf6 {[%clk 00:45:39]}
{[%emt 00:00:01]} 5. Nc3 {[%clk 00:45:54]} {[%emt 00:00:01]} a6 {[%clk
00:45:48]} {[%emt 00:00:01]} 6. Qd3 {[%clk 00:46:03]} {[%emt 00:00:01]} Nbd7
{[%clk 00:45:56]} {[%emt 00:00:02]} 7. Be2 {[%clk 00:46:12]} {[%emt 00:00:01]}
b5 {[%clk 00:46:01]} {[%emt 00:00:05]} 8. b4 {[%clk 00:45:24]} {[%emt
00:00:58]} Bb7 {[%clk 00:44:18]} {[%emt 00:01:52]} 9. O-O {[%clk 00:44:41]}
{[%emt 00:00:53]} g6 {[%clk 00:40:00]} {[%emt 00:04:28]} 10. a4 {[%clk
00:42:37]} {[%emt 00:02:14]} bxa4 {[%clk 00:32:43]} {[%emt 00:07:27]} 11. Rxa4
{[%clk 00:42:23]} {[%emt 00:00:24]} Ne5 {[%clk 00:30:54]} {[%emt 00:01:59]} 12.
Qe3 {[%clk 00:39:19]} {[%emt 00:03:14]} h5 {[%clk 00:29:11]} {[%emt 00:01:53]}
13. Nd5 {[%clk 00:37:16]} {[%emt 00:02:13]} Nxd5 {[%clk 00:19:28]} {[%emt
00:09:53]} 14. exd5 {[%clk 00:37:23]} {[%emt 00:00:02]} Bxd5 {[%clk 00:18:50]}
{[%emt 00:00:49]} 15. Bxa6 {[%clk 00:36:08]} {[%emt 00:01:26]} Bg7 {[%clk
00:17:55]} {[%emt 00:01:05]} 16. Ra5 {[%clk 00:28:49]} {[%emt 00:07:29]} Rxa6
{[%clk 00:14:31]} {[%emt 00:03:33]} 17. Rxa6 {[%clk 00:28:52]} {[%emt
00:00:07]} Qc8 {[%clk 00:14:01]} {[%emt 00:00:40]} 18. b5 {[%clk 00:26:29]}
{[%emt 00:02:32]} Ng4 {[%clk 00:09:16]} {[%emt 00:04:55]} 19. Qd3 {[%clk
00:24:16]} {[%emt 00:02:22]} Ne5 {[%clk 00:07:28]} {[%emt 00:01:59]} 20. Qd1
{[%clk 00:22:43]} {[%emt 00:01:43]} O-O {[%clk 00:04:00]} {[%emt 00:03:38]} 21.
Nf5 {[%clk 00:22:27]} {[%emt 00:00:25]} Qxf5 {[%clk 00:01:24]} {[%emt
00:02:46]} 22. Qxd5 {[%clk 00:22:36]} {[%emt 00:00:02]} Qxc2 {[%clk 00:01:33]}
{[%emt 00:00:02]} 23. Ra8 {[%clk 00:20:26]} {[%emt 00:02:19]} Nd3 {[%clk
00:00:12]} {[%emt 00:01:31]} 24. Be3 {[%clk 00:20:13]} {[%emt 00:00:22]} Nb4
{[%clk 00:00:17]} {[%emt 00:00:05]} 25. Rxf8+ {[%clk 00:20:16]} {[%emt
00:00:08]} Bxf8 {[%clk 00:00:26]} 26. Qa8 {[%clk 00:20:20]} {[%emt 00:00:05]}
1-0

[Event "FIDE U16 Olympiad_boards_1-80"]
[Site "Eindhoven, Netherlands"]
[Date "2023.08.14"]
[Round "2.7"]
[White "Manko, Mariia"]
[Black "Kong, Xiangrui"]
[Result "1/2-1/2"]
[TimeControl "2700+10"]
[WhiteElo "1912"]
[BlackElo "2381"]

1. d4 {[%clk 00:45:15]} {[%emt 00:00:04]} d5 {[%clk 00:45:19]} {[%emt
00:00:02]} 2. c4 {[%clk 00:45:24]} {[%emt 00:00:02]} c6 {[%clk 00:45:27]}
{[%emt 00:00:01]} 3. Nf3 {[%clk 00:45:30]} {[%emt 00:00:03]} Nf6 {[%clk
00:45:35]} {[%emt 00:00:02]} 4. g3 {[%clk 00:45:39]} {[%emt 00:00:02]} dxc4
{[%clk 00:45:43]} {[%emt 00:00:03]} 5. Bg2 {[%clk 00:45:42]} {[%emt 00:00:06]}
b5 {[%clk 00:45:50]} {[%emt 00:00:03]} 6. O-O {[%clk 00:45:49]} {[%emt
00:00:03]} e6 {[%clk 00:45:58]} {[%emt 00:00:02]} 7. a4 {[%clk 00:45:53]}
{[%emt 00:00:06]} Bb7 {[%clk 00:46:04]} {[%emt 00:00:03]} 8. b3 {[%clk
00:45:47]} {[%emt 00:00:16]} cxb3 {[%clk 00:45:57]} {[%emt 00:00:17]} 9. Qxb3
{[%clk 00:45:53]} {[%emt 00:00:04]} a6 {[%clk 00:45:03]} {[%emt 00:01:04]} 10.
Ne5 {[%clk 00:45:54]} {[%emt 00:00:10]} Be7 {[%clk 00:45:00]} {[%emt 00:00:12]}
11. axb5 {[%clk 00:43:49]} {[%emt 00:02:15]} axb5 {[%clk 00:45:04]} {[%emt
00:00:06]} 12. Rxa8 {[%clk 00:43:27]} {[%emt 00:00:32]} Bxa8 {[%clk 00:45:13]}
{[%emt 00:00:01]} 13. Qa2 {[%clk 00:43:08]} {[%emt 00:00:29]} Bb7 {[%clk
00:45:12]} {[%emt 00:00:12]} 14. Qa7 {[%clk 00:41:35]} {[%emt 00:01:44]} Qc8
{[%clk 00:45:21]} {[%emt 00:00:01]} 15. Ba3 {[%clk 00:39:14]} {[%emt 00:02:31]}
b4 {[%clk 00:44:01]} {[%emt 00:01:30]} 16. Bb2 {[%clk 00:34:25]} {[%emt
00:04:58]} O-O {[%clk 00:41:02]} {[%emt 00:03:09]} 17. Rc1 {[%clk 00:31:36]}
{[%emt 00:03:00]} Nd5 {[%clk 00:34:26]} {[%emt 00:06:46]} 18. Nc4 {[%clk
00:24:32]} {[%emt 00:07:14]} Nd7 {[%clk 00:25:02]} {[%emt 00:09:34]} 19. e4
{[%clk 00:21:06]} {[%emt 00:03:36]} N5f6 {[%clk 00:21:04]} {[%emt 00:04:09]} 20.
Na5 {[%clk 00:18:37]} {[%emt 00:02:39]} Ba8 {[%clk 00:20:56]} {[%emt 00:00:18]}
21. Nd2 {[%clk 00:13:01]} {[%emt 00:05:46]} c5 {[%clk 00:12:44]} {[%emt
00:08:22]} 22. Nab3 {[%clk 00:09:07]} {[%emt 00:04:04]} c4 {[%clk 00:09:44]}
{[%emt 00:03:11]} 23. Rxc4 {[%clk 00:07:13]} {[%emt 00:02:04]} Qd8 {[%clk
00:08:56]} {[%emt 00:00:57]} 24. Na5 {[%clk 00:02:51]} {[%emt 00:04:32]} Qb8
{[%clk 00:05:53]} {[%emt 00:03:14]} 25. Qxb8 {[%clk 00:01:52]} {[%emt
00:01:09]} Rxb8 {[%clk 00:05:42]} {[%emt 00:00:21]} 26. Nc6 {[%clk 00:01:43]}
{[%emt 00:00:20]} Bxc6 {[%clk 00:05:46]} {[%emt 00:00:06]} 27. Rxc6 {[%clk
00:01:51]} {[%emt 00:00:02]} Nb6 {[%clk 00:05:40]} {[%emt 00:00:17]} 28. Rc7
{[%clk 00:01:05]} {[%emt 00:00:56]} Kf8 {[%clk 00:05:34]} {[%emt 00:00:15]} 29.
Nb3 {[%clk 00:00:43]} {[%emt 00:00:32]} Ra8 {[%clk 00:04:23]} {[%emt 00:01:21]}
30. Rb7 {[%clk 00:00:41]} {[%emt 00:00:11]} Na4 {[%clk 00:03:52]} {[%emt
00:00:41]} 31. Bc1 {[%clk 00:00:20]} {[%emt 00:00:31]} Nc3 {[%clk 00:04:00]}
{[%emt 00:00:02]} 32. e5 {[%clk 00:00:21]} {[%emt 00:00:10]} Ne2+ {[%clk
00:02:18]} {[%emt 00:01:52]} 33. Kf1 {[%clk 00:00:29]} {[%emt 00:00:01]} Nxc1
{[%clk 00:02:27]} {[%emt 00:00:01]} 34. exf6 {[%clk 00:00:33]} {[%emt
00:00:06]} gxf6 {[%clk 00:02:36]} {[%emt 00:00:01]} 35. Rc7 {[%clk 00:00:20]}
{[%emt 00:00:22]} Nxb3 {[%clk 00:01:46]} {[%emt 00:01:00]} 36. Bxa8 {[%clk
00:00:28]} {[%emt 00:00:02]} Nxd4 {[%emt 00:00:03]} 37. g4 {[%clk 00:00:18]}
{[%emt 00:00:19]} f5 {[%clk 00:01:15]} {[%emt 00:00:49]} 38. gxf5 {[%clk
00:00:27]} {[%emt 00:00:01]} Nxf5 {[%clk 00:01:23]} {[%emt 00:00:03]} 39. Be4
{[%clk 00:00:32]} {[%emt 00:00:05]} Nd4 {[%clk 00:01:22]} {[%emt 00:00:11]} 40.
Rb7 {[%clk 00:00:18]} {[%emt 00:00:23]} f5 {[%clk 00:01:28]} {[%emt 00:00:03]}
41. Bd3 {[%clk 00:00:26]} {[%emt 00:00:03]} e5 {[%clk 00:01:26]} {[%emt
00:00:13]} 42. Rb8+ {[%clk 00:00:21]} {[%emt 00:00:15]} Kg7 {[%clk 00:01:29]}
{[%emt 00:00:06]} 43. Bc4 {[%clk 00:00:21]} {[%emt 00:00:09]} e4 {[%clk
00:01:35]} {[%emt 00:00:04]} 44. Rb7 {[%clk 00:00:19]} {[%emt 00:00:13]} Kf6
{[%clk 00:01:44]} 45. h4 {[%clk 00:00:14]} {[%emt 00:00:15]} f4 {[%clk
00:01:17]} {[%emt 00:00:37]} 46. Rb6+ {[%clk 00:00:20]} {[%emt 00:00:04]} Ke5
{[%clk 00:01:06]} {[%emt 00:00:22]} 47. Rh6 {[%clk 00:00:21]} {[%emt 00:00:08]}
Nf5 {[%clk 00:00:39]} {[%emt 00:00:37]} 48. Rxh7 {[%clk 00:00:21]} {[%emt
00:00:09]} Bxh4 {[%clk 00:00:46]} {[%emt 00:00:03]} 49. Rd7 {[%clk 00:00:13]}
{[%emt 00:00:19]} e3 {[%clk 00:00:38]} {[%emt 00:00:18]} 50. Rd5+ {[%clk
00:00:22]} {[%emt 00:00:01]} Kf6 {[%clk 00:00:38]} {[%emt 00:00:10]} 51. Bd3
{[%clk 00:00:24]} {[%emt 00:00:08]} Ne7 {[%clk 00:00:38]} {[%emt 00:00:10]} 52.
Rd4 {[%clk 00:00:25]} {[%emt 00:00:09]} Bxf2 {[%clk 00:00:27]} {[%emt
00:00:21]} 53. Rxf4+ {[%clk 00:00:29]} {[%emt 00:00:05]} Ke5 {[%clk 00:00:36]}
{[%emt 00:00:02]} 54. Rxb4 {[%clk 00:00:21]} {[%emt 00:00:19]} Nc6 {[%clk
00:00:45]} {[%emt 00:00:01]} 55. Re4+ {[%clk 00:00:27]} {[%emt 00:00:04]} Kd5
{[%clk 00:00:54]} 56. Rf4 {[%clk 00:00:32]} {[%emt 00:00:05]} Ne5 {[%clk
00:00:59]} {[%emt 00:00:05]} 57. Be4+ {[%clk 00:00:36]} {[%emt 00:00:06]} Ke6
{[%clk 00:01:03]} {[%emt 00:00:06]} 58. Rxf2 {[%clk 00:00:28]} {[%emt
00:00:05]} 1/2-1/2